[Event "*** Titled Tuesday Blitz"]
[Site "Chess.com"]
[Date "2020.05.12"]
[Round "3"]
[White "sopo-tereladze"]
[Black "Chessmasterzt"]
[Result "1-0"]
[WhiteElo "2394"]
[BlackElo "2557"]
[TimeControl "180+1"]
[EndTime "10:29:00 PDT"]
[Termination "sopo-tereladze won by resignation"]

1. e4 {[%clk 0:03:00.9]} 1... d5 {[%clk 0:02:59]} 2. exd5 {[%clk 0:02:59.9]}
2... Nf6 {[%clk 0:02:59.3]} 3. d4 {[%clk 0:02:54.3]} 3... Bg4 {[%clk 0:02:59.6]}
4. f3 {[%clk 0:02:50.8]} 4... Bf5 {[%clk 0:02:59.3]} 5. c4 {[%clk 0:02:49.6]}
5... e6 {[%clk 0:02:59.5]} 6. dxe6 {[%clk 0:02:47.7]} 6... Nc6 {[%clk
0:02:58.2]} 7. Be3 {[%clk 0:02:37.2]} 7... fxe6 {[%clk 0:02:55.9]} 8. a3 {[%clk
0:02:33]} 8... Qe7 {[%clk 0:02:55.2]} 9. Nc3 {[%clk 0:02:28.4]} 9... O-O-O
{[%clk 0:02:55.6]} 10. Nge2 {[%clk 0:02:26.1]} 10... e5 {[%clk 0:02:00.8]} 11.
d5 {[%clk 0:02:20.3]} 11... Nd4 {[%clk 0:01:58.1]} 12. Bxd4 {[%clk 0:02:13.9]}
12... exd4 {[%clk 0:01:59]} 13. Qxd4 {[%clk 0:02:13.2]} 13... Kb8 {[%clk
0:01:46.5]} 14. g4 {[%clk 0:02:07.1]} 14... Bc8 {[%clk 0:01:38.1]} 15. O-O-O
{[%clk 0:02:01]} 15... Nd7 {[%clk 0:01:30.7]} 16. Nf4 {[%clk 0:01:56.3]} 16...
Nc5 {[%clk 0:01:30]} 17. Kb1 {[%clk 0:01:49.5]} 17... Qh4 {[%clk 0:01:23.9]} 18.
Ka2 {[%clk 0:01:43.3]} 18... Bd6 {[%clk 0:01:23.4]} 19. Nd3 {[%clk 0:01:39.8]}
19... Nxd3 {[%clk 0:01:14.9]} 20. Bxd3 {[%clk 0:01:40.7]} 20... Rhf8 {[%clk
0:01:14.9]} 21. Rdf1 {[%clk 0:01:27.1]} 21... h5 {[%clk 0:01:15]} 22. Nb5 {[%clk
0:01:23.1]} 22... b6 {[%clk 0:01:11]} 23. Nxd6 {[%clk 0:01:22.8]} 23... cxd6
{[%clk 0:01:05.3]} 24. Qxg7 {[%clk 0:01:17.5]} 24... hxg4 {[%clk 0:01:01.8]} 25.
fxg4 {[%clk 0:01:18.4]} 25... Rxf1 {[%clk 0:00:44.1]} 26. Rxf1 {[%clk
0:01:19.3]} 26... Qh3 {[%clk 0:00:44.3]} 27. Qd4 {[%clk 0:01:10.8]} 27... Bxg4
{[%clk 0:00:34.6]} 28. Rf7 {[%clk 0:01:05.9]} 28... Bc8 {[%clk 0:00:32.7]} 29.
a4 {[%clk 0:01:01.3]} 29... Qxh2 {[%clk 0:00:26.6]} 30. a5 {[%clk 0:01:01.1]}
30... Qd2 {[%clk 0:00:27]} 31. axb6 {[%clk 0:00:54.8]} 31... Qa5+ {[%clk
0:00:27.2]} 32. Kb3 {[%clk 0:00:54.4]} 32... axb6 {[%clk 0:00:27.1]} 33. Qc3
{[%clk 0:00:51.9]} 33... Qc5 {[%clk 0:00:27.2]} 34. Qb4 {[%clk 0:00:51.7]} 34...
Re8 {[%clk 0:00:24.6]} 35. Qxc5 {[%clk 0:00:45.2]} 35... bxc5 {[%clk 0:00:25.5]}
36. Ka4 {[%clk 0:00:44]} 36... Re3 {[%clk 0:00:23.8]} 37. Bf5 {[%clk 0:00:39.4]}
37... Ba6 {[%clk 0:00:20.4]} 38. b3 {[%clk 0:00:31.8]} 38... Re2 {[%clk
0:00:19.2]} 39. Ka5 {[%clk 0:00:29.5]} 39... Bc8 {[%clk 0:00:10.8]} 40. Rf8
{[%clk 0:00:26.2]} 40... Ra2+ {[%clk 0:00:10.5]} 41. Kb6 {[%clk 0:00:21.6]}
41... Ra6+ {[%clk 0:00:10.9]} 42. Kb5 {[%clk 0:00:21.4]} 42... Ka7 {[%clk
0:00:10.6]} 43. Bxc8 {[%clk 0:00:19.1]} 43... Rb6+ {[%clk 0:00:10.6]} 44. Ka5
{[%clk 0:00:18.8]} 44... Rxb3 {[%clk 0:00:10.1]} 45. Rf7+ {[%clk 0:00:14.4]}
45... Kb8 {[%clk 0:00:08.6]} 46. Bd7 {[%clk 0:00:14.4]} 46... Rb4 {[%clk
0:00:08.9]} 47. Bb5 {[%clk 0:00:13]} 47... Rb1 {[%clk 0:00:08.3]} 48. Kb6 {[%clk
0:00:12.6]} 48... Rf1 {[%clk 0:00:08.5]} 49. Rxf1 {[%clk 0:00:11.6]} 1-0

[Event "*** Titled Tuesday Blitz"]
[Site "Chess.com"]
[Date "2020.05.12"]
[Round "3"]
[White "OparinGrigoriy"]
[Black "GM_DarwinLaylo"]
[Result "1-0"]
[WhiteElo "2922"]
[BlackElo "2536"]
[TimeControl "180+1"]
[EndTime "10:29:01 PDT"]
[Termination "OparinGrigoriy won on time"]

1. Nf3 {[%clk 0:03:00.9]} 1... Nf6 {[%clk 0:02:56.6]} 2. g3 {[%clk 0:03:01.4]}
2... g6 {[%clk 0:02:55.1]} 3. Bg2 {[%clk 0:03:02.3]} 3... Bg7 {[%clk 0:02:55.6]}
4. c4 {[%clk 0:03:03.2]} 4... c6 {[%clk 0:02:50.8]} 5. b3 {[%clk 0:03:02.7]}
5... d5 {[%clk 0:02:48.5]} 6. Bb2 {[%clk 0:03:02.7]} 6... O-O {[%clk 0:02:48.4]}
7. O-O {[%clk 0:03:03.4]} 7... a5 {[%clk 0:02:46.5]} 8. Nc3 {[%clk 0:03:02]}
8... Bg4 {[%clk 0:02:40.3]} 9. d3 {[%clk 0:02:59]} 9... Bxf3 {[%clk 0:02:38.8]}
10. Bxf3 {[%clk 0:02:59.1]} 10... e6 {[%clk 0:02:39.2]} 11. e3 {[%clk
0:02:52.6]} 11... Na6 {[%clk 0:02:35.8]} 12. d4 {[%clk 0:02:50.4]} 12... Re8
{[%clk 0:02:31.9]} 13. Qe2 {[%clk 0:02:49.7]} 13... Qe7 {[%clk 0:02:16.7]} 14.
Rfd1 {[%clk 0:02:42.7]} 14... Rab8 {[%clk 0:02:08.5]} 15. Bg2 {[%clk 0:02:42.8]}
15... Qd7 {[%clk 0:02:04.3]} 16. Rac1 {[%clk 0:02:38.6]} 16... b5 {[%clk
0:02:03.3]} 17. cxb5 {[%clk 0:02:30.2]} 17... cxb5 {[%clk 0:02:02.8]} 18. Bf1
{[%clk 0:02:30.5]} 18... Nc7 {[%clk 0:01:57.5]} 19. Rc2 {[%clk 0:02:31]} 19...
Rb7 {[%clk 0:01:56.2]} 20. Rdc1 {[%clk 0:02:31.4]} 20... Reb8 {[%clk 0:01:56.4]}
21. Qe1 {[%clk 0:02:29.2]} 21... Bf8 {[%clk 0:01:54.6]} 22. Ne2 {[%clk
0:02:29.8]} 22... Bb4 {[%clk 0:01:52.3]} 23. Qd1 {[%clk 0:02:29.7]} 23... a4
{[%clk 0:01:43.6]} 24. Nf4 {[%clk 0:02:19.6]} 24... axb3 {[%clk 0:01:37.7]} 25.
axb3 {[%clk 0:02:19.4]} 25... Bd6 {[%clk 0:01:30.4]} 26. Nd3 {[%clk 0:02:19.9]}
26... Qe7 {[%clk 0:01:03.9]} 27. Nc5 {[%clk 0:02:18.4]} 27... Rb6 {[%clk
0:01:04.2]} 28. b4 {[%clk 0:02:09.9]} 28... Ne4 {[%clk 0:00:58.8]} 29. f3 {[%clk
0:02:08]} 29... Nf6 {[%clk 0:00:54.9]} 30. Ra1 {[%clk 0:02:07.7]} 30... Nce8
{[%clk 0:00:53.2]} 31. Bc3 {[%clk 0:02:06.1]} 31... h5 {[%clk 0:00:52.3]} 32.
Rca2 {[%clk 0:02:05.6]} 32... h4 {[%clk 0:00:50.4]} 33. Ra7 {[%clk 0:02:05.4]}
33... Qf8 {[%clk 0:00:48.7]} 34. g4 {[%clk 0:02:03.4]} 34... Qh6 {[%clk
0:00:44.5]} 35. Bd2 {[%clk 0:01:57.9]} 35... g5 {[%clk 0:00:42.5]} 36. Bd3
{[%clk 0:01:51.2]} 36... h3 {[%clk 0:00:33.8]} 37. Qe2 {[%clk 0:01:42.1]} 37...
Qh4 {[%clk 0:00:30.1]} 38. Be1 {[%clk 0:01:38.6]} 38... Qh6 {[%clk 0:00:29]} 39.
Bf2 {[%clk 0:01:38.8]} 39... e5 {[%clk 0:00:28.8]} 40. dxe5 {[%clk 0:01:05.9]}
40... Bxe5 {[%clk 0:00:27.4]} 41. Rd1 {[%clk 0:01:06.4]} 41... Ng7 {[%clk
0:00:21]} 42. Bc2 {[%clk 0:00:35.9]} 42... Ne6 {[%clk 0:00:20.1]} 43. Bb3 {[%clk
0:00:36]} 43... Nxc5 {[%clk 0:00:16.4]} 44. bxc5 {[%clk 0:00:36.9]} 44... Rc6
{[%clk 0:00:16.6]} 45. e4 {[%clk 0:00:36.4]} 45... Re8 {[%clk 0:00:09.9]} 46.
Bxd5 {[%clk 0:00:32.1]} 46... Nxd5 {[%clk 0:00:08]} 47. Rxd5 {[%clk 0:00:33]}
47... Qf6 {[%clk 0:00:04.9]} 48. Bg3 {[%clk 0:00:25.6]} 48... Bxg3 {[%clk
0:00:03.2]} 49. hxg3 {[%clk 0:00:26.5]} 1-0

[Event "*** Titled Tuesday Blitz"]
[Site "Chess.com"]
[Date "2020.05.12"]
[Round "3"]
[White "karinachess1"]
[Black "LikeWater"]
[Result "0-1"]
[WhiteElo "2466"]
[BlackElo "2695"]
[TimeControl "180+1"]
[EndTime "10:29:01 PDT"]
[Termination "LikeWater won on time"]

1. e4 {[%clk 0:03:00.9]} 1... c5 {[%clk 0:02:58.6]} 2. Nf3 {[%clk 0:03:00.2]}
2... e6 {[%clk 0:02:58.7]} 3. d4 {[%clk 0:03:00.3]} 3... cxd4 {[%clk 0:02:59.6]}
4. Nxd4 {[%clk 0:03:00.9]} 4... Nc6 {[%clk 0:02:59.9]} 5. Nc3 {[%clk 0:02:56.8]}
5... Qc7 {[%clk 0:03:00]} 6. Be2 {[%clk 0:02:55.7]} 6... Nf6 {[%clk 0:03:00]} 7.
O-O {[%clk 0:02:52.6]} 7... Be7 {[%clk 0:03:00.3]} 8. Ndb5 {[%clk 0:02:44.8]}
8... Qb8 {[%clk 0:02:59.6]} 9. f4 {[%clk 0:02:44.9]} 9... d6 {[%clk 0:02:51]}
10. Be3 {[%clk 0:02:40.7]} 10... O-O {[%clk 0:02:49.2]} 11. Kh1 {[%clk
0:02:33.7]} 11... a6 {[%clk 0:02:46.3]} 12. Nd4 {[%clk 0:02:33.7]} 12... Qc7
{[%clk 0:02:42.2]} 13. Qe1 {[%clk 0:02:33.3]} 13... Bd7 {[%clk 0:01:48.6]} 14.
Qg3 {[%clk 0:02:29.4]} 14... Kh8 {[%clk 0:01:44]} 15. Bd3 {[%clk 0:02:09.5]}
15... e5 {[%clk 0:01:33.6]} 16. Nxc6 {[%clk 0:01:35.5]} 16... Bxc6 {[%clk
0:01:34.5]} 17. fxe5 {[%clk 0:01:33.8]} 17... dxe5 {[%clk 0:01:35.2]} 18. Rf5
{[%clk 0:01:25.7]} 18... b5 {[%clk 0:01:18.8]} 19. a3 {[%clk 0:01:17.8]} 19...
b4 {[%clk 0:01:03.4]} 20. axb4 {[%clk 0:01:17.6]} 20... Bxb4 {[%clk 0:01:04.3]}
21. Qh4 {[%clk 0:00:21.8]} 21... Be7 {[%clk 0:00:21]} 22. Bg5 {[%clk 0:00:21.6]}
22... Ng8 {[%clk 0:00:16.5]} 23. Raf1 {[%clk 0:00:18.3]} 23... Bxg5 {[%clk
0:00:09.9]} 24. Qxg5 {[%clk 0:00:16.3]} 24... Rab8 {[%clk 0:00:07]} 25. Nd5
{[%clk 0:00:10.7]} 25... Bxd5 {[%clk 0:00:06.5]} 26. exd5 {[%clk 0:00:11.6]}
26... f6 {[%clk 0:00:05.6]} 27. Qh4 {[%clk 0:00:10.7]} 27... g6 {[%clk
0:00:05.3]} 28. R5f2 {[%clk 0:00:09]} 28... f5 {[%clk 0:00:05.5]} 29. b3 {[%clk
0:00:08]} 29... e4 {[%clk 0:00:05.3]} 30. Bc4 {[%clk 0:00:07.6]} 30... Qg7
{[%clk 0:00:03.7]} 31. Rd1 {[%clk 0:00:06.6]} 31... Rbd8 {[%clk 0:00:02.9]} 32.
Qf4 {[%clk 0:00:06.6]} 32... Nf6 {[%clk 0:00:03.5]} 33. Rfd2 {[%clk 0:00:06.5]}
33... Ng4 {[%clk 0:00:03.8]} 34. d6 {[%clk 0:00:05.1]} 34... Ne5 {[%clk
0:00:04.3]} 35. Bxa6 {[%clk 0:00:03.8]} 35... Nc6 {[%clk 0:00:03.4]} 36. Be2
{[%clk 0:00:03.7]} 36... Ne5 {[%clk 0:00:03.5]} 37. c4 {[%clk 0:00:02.8]} 37...
Rfe8 {[%clk 0:00:03.4]} 38. c5 {[%clk 0:00:03]} 38... Qf6 {[%clk 0:00:03.7]} 39.
b4 {[%clk 0:00:03.4]} 39... g5 {[%clk 0:00:04.2]} 40. Qf1 {[%clk 0:00:03.8]}
40... f4 {[%clk 0:00:04.3]} 41. c6 {[%clk 0:00:04.1]} 41... Nxc6 {[%clk
0:00:04]} 42. Bb5 {[%clk 0:00:04.3]} 42... Ne5 {[%clk 0:00:01.4]} 43. Bxe8
{[%clk 0:00:04.1]} 43... Rxe8 {[%clk 0:00:02.3]} 44. d7 {[%clk 0:00:04.7]} 44...
Rd8 {[%clk 0:00:03]} 45. Qb5 {[%clk 0:00:04.5]} 45... Ng4 {[%clk 0:00:02.4]} 46.
Qc5 {[%clk 0:00:02.8]} 46... Kg7 {[%clk 0:00:02.2]} 47. Qc7 {[%clk 0:00:02.3]}
47... e3 {[%clk 0:00:02.4]} 48. Re2 {[%clk 0:00:01.8]} 48... Nf2+ {[%clk
0:00:03]} 49. Rxf2 {[%clk 0:00:01.8]} 49... exf2 {[%clk 0:00:03.3]} 0-1

[Event "*** Titled Tuesday Blitz"]
[Site "Chess.com"]
[Date "2020.05.12"]
[Round "3"]
[White "KuzubovYuriy"]
[Black "Oleksandr_Bortnyk"]
[Result "0-1"]
[WhiteElo "2671"]
[BlackElo "2979"]
[TimeControl "180+1"]
[EndTime "10:29:02 PDT"]
[Termination "Oleksandr_Bortnyk won on time"]

1. d4 {[%clk 0:03:00.9]} 1... d6 {[%clk 0:02:59.4]} 2. c4 {[%clk 0:02:57.7]}
2... e5 {[%clk 0:02:59.7]} 3. Nc3 {[%clk 0:02:57.2]} 3... exd4 {[%clk
0:03:00.2]} 4. Qxd4 {[%clk 0:02:57.1]} 4... Nc6 {[%clk 0:03:01.1]} 5. Qd2 {[%clk
0:02:57.3]} 5... g6 {[%clk 0:03:01.7]} 6. g3 {[%clk 0:02:57]} 6... Bg7 {[%clk
0:03:02.6]} 7. Bg2 {[%clk 0:02:57.3]} 7... Nf6 {[%clk 0:03:03.5]} 8. Nh3 {[%clk
0:02:55.8]} 8... O-O {[%clk 0:03:04.4]} 9. Nf4 {[%clk 0:02:54.7]} 9... Re8
{[%clk 0:02:46]} 10. O-O {[%clk 0:02:53.2]} 10... a5 {[%clk 0:02:13.6]} 11. Ncd5
{[%clk 0:02:04.5]} 11... Ne4 {[%clk 0:01:58.2]} 12. Qd1 {[%clk 0:01:54.4]} 12...
Nc5 {[%clk 0:01:50.6]} 13. Nd3 {[%clk 0:01:31.8]} 13... Nxd3 {[%clk 0:01:39.9]}
14. Qxd3 {[%clk 0:01:25]} 14... Ne5 {[%clk 0:01:39.6]} 15. Qc2 {[%clk
0:01:22.9]} 15... c6 {[%clk 0:01:38.1]} 16. Nf4 {[%clk 0:01:15.8]} 16... a4
{[%clk 0:01:20.1]} 17. Bd2 {[%clk 0:01:11]} 17... Qb6 {[%clk 0:01:13]} 18. Bc3
{[%clk 0:00:59.4]} 18... Bf5 {[%clk 0:01:12.9]} 19. e4 {[%clk 0:00:48.8]} 19...
Bg4 {[%clk 0:01:13.3]} 20. Kh1 {[%clk 0:00:36.6]} 20... Qc5 {[%clk 0:00:55.1]}
21. b3 {[%clk 0:00:35.2]} 21... b5 {[%clk 0:00:52.8]} 22. h3 {[%clk 0:00:23]}
22... Bd7 {[%clk 0:00:32.2]} 23. Bxe5 {[%clk 0:00:16.5]} 23... Qxe5 {[%clk
0:00:27.7]} 24. Rad1 {[%clk 0:00:15.9]} 24... axb3 {[%clk 0:00:24.5]} 25. axb3
{[%clk 0:00:16.8]} 25... bxc4 {[%clk 0:00:21.1]} 26. bxc4 {[%clk 0:00:17.7]}
26... Reb8 {[%clk 0:00:20.2]} 27. c5 {[%clk 0:00:15.2]} 27... Rb2 {[%clk
0:00:16.4]} 28. Qc1 {[%clk 0:00:15.3]} 28... Rba2 {[%clk 0:00:11.1]} 29. cxd6
{[%clk 0:00:14.3]} 29... h5 {[%clk 0:00:10.6]} 30. Nd3 {[%clk 0:00:13.3]} 30...
Qf6 {[%clk 0:00:02]} 31. e5 {[%clk 0:00:13]} 31... Qf5 {[%clk 0:00:01.9]} 32.
Nc5 {[%clk 0:00:09.4]} 32... Bxe5 {[%clk 0:00:01.5]} 33. Nxd7 {[%clk 0:00:08.8]}
33... Qxd7 {[%clk 0:00:02.4]} 34. Qxc6 {[%clk 0:00:08.1]} 34... Qxc6 {[%clk
0:00:02.5]} 35. Bxc6 {[%clk 0:00:08.4]} 35... Rd8 {[%clk 0:00:03.4]} 36. d7
{[%clk 0:00:08.6]} 36... Kg7 {[%clk 0:00:03.4]} 37. h4 {[%clk 0:00:08.9]} 37...
Bc7 {[%clk 0:00:03.3]} 38. Rd3 {[%clk 0:00:07.9]} 38... Bb6 {[%clk 0:00:03.5]}
39. Kg2 {[%clk 0:00:07.9]} 39... Rc2 {[%clk 0:00:03.8]} 40. Bb5 {[%clk
0:00:06.7]} 40... Rc5 {[%clk 0:00:04]} 41. Ba4 {[%clk 0:00:06.9]} 41... Rc4
{[%clk 0:00:03.9]} 42. Bb3 {[%clk 0:00:06.9]} 42... Rc7 {[%clk 0:00:03.4]} 43.
Rfd1 {[%clk 0:00:06.6]} 43... Rc5 {[%clk 0:00:03.9]} 44. Rf3 {[%clk 0:00:06.2]}
44... f5 {[%clk 0:00:01.9]} 45. Re3 {[%clk 0:00:05.8]} 45... Rc6 {[%clk
0:00:02.2]} 46. Re7+ {[%clk 0:00:05.4]} 46... Kh6 {[%clk 0:00:02.8]} 47. Re8
{[%clk 0:00:05.2]} 47... Rf6 {[%clk 0:00:02.6]} 48. Ba4 {[%clk 0:00:04.2]} 48...
f4 {[%clk 0:00:02.8]} 49. Rd5 {[%clk 0:00:02.2]} 49... fxg3 {[%clk 0:00:02.9]}
50. fxg3 {[%clk 0:00:02.5]} 50... Rf2+ {[%clk 0:00:03.4]} 51. Kh3 {[%clk
0:00:02.5]} 51... Ra2 {[%clk 0:00:03.6]} 0-1

[Event "*** Titled Tuesday Blitz"]
[Site "Chess.com"]
[Date "2020.05.12"]
[Round "3"]
[White "Alexander_Donchenko"]
[Black "White_Ghost"]
[Result "1/2-1/2"]
[WhiteElo "2730"]
[BlackElo "2437"]
[TimeControl "180+1"]
[EndTime "10:29:03 PDT"]
[Termination "Game drawn - insufficient material"]

1. e4 {[%clk 0:03:00.9]} 1... e5 {[%clk 0:02:57.5]} 2. Nf3 {[%clk 0:03:01.1]}
2... Nc6 {[%clk 0:02:57]} 3. Bb5 {[%clk 0:03:01.7]} 3... a6 {[%clk 0:02:56.8]}
4. Ba4 {[%clk 0:03:02.3]} 4... b5 {[%clk 0:02:57.3]} 5. Bb3 {[%clk 0:03:02.2]}
5... Na5 {[%clk 0:02:58.2]} 6. Nxe5 {[%clk 0:02:59.6]} 6... Nxb3 {[%clk
0:02:56.8]} 7. axb3 {[%clk 0:03:00.5]} 7... Qe7 {[%clk 0:02:57.4]} 8. d4 {[%clk
0:03:00.2]} 8... d6 {[%clk 0:02:57.8]} 9. Nf3 {[%clk 0:02:59.7]} 9... Qxe4+
{[%clk 0:02:58.7]} 10. Be3 {[%clk 0:03:00.3]} 10... Bb7 {[%clk 0:02:55.6]} 11.
O-O {[%clk 0:02:58.8]} 11... Be7 {[%clk 0:02:53.7]} 12. Re1 {[%clk 0:02:58.5]}
12... Qg6 {[%clk 0:02:37.6]} 13. d5 {[%clk 0:02:52.7]} 13... Nf6 {[%clk
0:02:35.4]} 14. c4 {[%clk 0:02:52.6]} 14... O-O {[%clk 0:02:33]} 15. Nc3 {[%clk
0:02:52.3]} 15... bxc4 {[%clk 0:01:45.4]} 16. bxc4 {[%clk 0:02:53.2]} 16... Ng4
{[%clk 0:01:38.4]} 17. Bd4 {[%clk 0:02:49.3]} 17... Bf6 {[%clk 0:01:37.5]} 18.
h3 {[%clk 0:02:48.5]} 18... Bxd4 {[%clk 0:01:34.7]} 19. Qxd4 {[%clk 0:02:49.4]}
19... Nf6 {[%clk 0:01:34]} 20. b4 {[%clk 0:02:46.7]} 20... Rfe8 {[%clk
0:01:29.9]} 21. b5 {[%clk 0:02:35.7]} 21... a5 {[%clk 0:01:12.6]} 22. Rxe8+
{[%clk 0:02:33.9]} 22... Rxe8 {[%clk 0:01:03.5]} 23. Rxa5 {[%clk 0:02:30]} 23...
Bc8 {[%clk 0:00:56]} 24. Ra8 {[%clk 0:02:23.1]} 24... Bxh3 {[%clk 0:00:45.6]}
25. Rxe8+ {[%clk 0:02:22.7]} 25... Nxe8 {[%clk 0:00:46.5]} 26. Nh4 {[%clk
0:02:22.4]} 26... Qg5 {[%clk 0:00:41.9]} 27. Qe3 {[%clk 0:01:40.5]} 27... Qxe3
{[%clk 0:00:40.1]} 28. fxe3 {[%clk 0:01:41.4]} 28... Bd7 {[%clk 0:00:40.4]} 29.
e4 {[%clk 0:01:24.8]} 29... Nf6 {[%clk 0:00:28.5]} 30. e5 {[%clk 0:01:24.6]}
30... dxe5 {[%clk 0:00:23.9]} 31. c5 {[%clk 0:01:24.4]} 31... Kf8 {[%clk
0:00:15.6]} 32. d6 {[%clk 0:01:22.5]} 32... cxd6 {[%clk 0:00:14.8]} 33. c6
{[%clk 0:01:23.1]} 33... Bxc6 {[%clk 0:00:07.5]} 34. bxc6 {[%clk 0:01:24]} 34...
Ke7 {[%clk 0:00:06.1]} 35. Nf5+ {[%clk 0:01:24.1]} 35... Kd8 {[%clk 0:00:06.3]}
36. Nb5 {[%clk 0:01:23.2]} 36... Ne8 {[%clk 0:00:03.7]} 37. Nfxd6 {[%clk
0:01:15.2]} 37... Nxd6 {[%clk 0:00:03.7]} 38. Nxd6 {[%clk 0:01:16.1]} 38... Kc7
{[%clk 0:00:04.6]} 39. Nxf7 {[%clk 0:01:16.6]} 39... Kxc6 {[%clk 0:00:05.2]} 40.
Nxe5+ {[%clk 0:01:17.1]} 40... Kd5 {[%clk 0:00:05.7]} 41. Nf3 {[%clk 0:01:17]}
41... Ke4 {[%clk 0:00:05.5]} 42. Kf2 {[%clk 0:01:17.5]} 42... Kf4 {[%clk
0:00:06.1]} 43. g3+ {[%clk 0:01:13.6]} 43... Kg4 {[%clk 0:00:06.5]} 44. Kg2
{[%clk 0:01:13.1]} 44... g5 {[%clk 0:00:06]} 45. Nh2+ {[%clk 0:01:12.3]} 45...
Kf5 {[%clk 0:00:06]} 46. Kf3 {[%clk 0:01:09.1]} 46... h5 {[%clk 0:00:06.3]} 47.
Nf1 {[%clk 0:00:19.7]} 47... g4+ {[%clk 0:00:06.3]} 48. Ke3 {[%clk 0:00:09.8]}
48... Kg5 {[%clk 0:00:07.2]} 49. Nd2 {[%clk 0:00:09.9]} 49... h4 {[%clk
0:00:07.6]} 50. Ne4+ {[%clk 0:00:10.6]} 50... Kh5 {[%clk 0:00:07.9]} 51. Nf6+
{[%clk 0:00:11]} 51... Kg5 {[%clk 0:00:08.4]} 52. Nh7+ {[%clk 0:00:11.4]} 52...
Kh5 {[%clk 0:00:08.7]} 53. Nf6+ {[%clk 0:00:05]} 53... Kg5 {[%clk 0:00:09]} 54.
Nxg4 {[%clk 0:00:04.5]} 54... Kxg4 {[%clk 0:00:08.8]} 55. gxh4 {[%clk
0:00:04.9]} 55... Kxh4 {[%clk 0:00:09.7]} 1/2-1/2

[Event "*** Titled Tuesday Blitz"]
[Site "Chess.com"]
[Date "2020.05.12"]
[Round "3"]
[White "Drags95"]
[Black "MathiasWomacka"]
[Result "0-1"]
[WhiteElo "2715"]
[BlackElo "2443"]
[TimeControl "180+1"]
[EndTime "10:29:03 PDT"]
[Termination "MathiasWomacka won on time"]

1. d4 {[%clk 0:03:00.9]} 1... Nf6 {[%clk 0:02:59.3]} 2. c4 {[%clk 0:03:00.3]}
2... e6 {[%clk 0:02:58.8]} 3. Nf3 {[%clk 0:03:00.6]} 3... Bb4+ {[%clk
0:02:58.3]} 4. Bd2 {[%clk 0:03:00.1]} 4... Qe7 {[%clk 0:02:58.4]} 5. g3 {[%clk
0:02:56.3]} 5... Bxd2+ {[%clk 0:02:57.9]} 6. Nbxd2 {[%clk 0:02:55.9]} 6... d6
{[%clk 0:02:57.3]} 7. Bg2 {[%clk 0:02:42.2]} 7... e5 {[%clk 0:02:55.4]} 8. O-O
{[%clk 0:02:42.3]} 8... O-O {[%clk 0:02:54.8]} 9. Rc1 {[%clk 0:01:53.6]} 9... e4
{[%clk 0:02:40.6]} 10. Ng5 {[%clk 0:01:46.3]} 10... e3 {[%clk 0:02:40.6]} 11.
Nde4 {[%clk 0:01:46.5]} 11... Nxe4 {[%clk 0:02:37.5]} 12. Nxe4 {[%clk
0:01:44.9]} 12... exf2+ {[%clk 0:02:37]} 13. Rxf2 {[%clk 0:01:43.5]} 13... Nc6
{[%clk 0:02:34.6]} 14. Qd2 {[%clk 0:01:32]} 14... Bg4 {[%clk 0:02:32.3]} 15. Nc3
{[%clk 0:01:16.2]} 15... Rae8 {[%clk 0:02:25.3]} 16. Nd5 {[%clk 0:01:15.4]}
16... Qd8 {[%clk 0:02:25.4]} 17. Rcf1 {[%clk 0:01:10.8]} 17... Bh5 {[%clk
0:02:12.7]} 18. b4 {[%clk 0:00:56.3]} 18... Bg6 {[%clk 0:02:10.4]} 19. b5 {[%clk
0:00:56.3]} 19... Ne7 {[%clk 0:02:10]} 20. Nf4 {[%clk 0:00:52.7]} 20... c6
{[%clk 0:02:06.3]} 21. bxc6 {[%clk 0:00:50.2]} 21... bxc6 {[%clk 0:02:07.2]} 22.
Nxg6 {[%clk 0:00:47.6]} 22... hxg6 {[%clk 0:02:07.1]} 23. g4 {[%clk 0:00:41.7]}
23... Qb6 {[%clk 0:02:01.6]} 24. h3 {[%clk 0:00:36.3]} 24... f5 {[%clk
0:01:38.4]} 25. Kh1 {[%clk 0:00:23.1]} 25... fxg4 {[%clk 0:01:29]} 26. hxg4
{[%clk 0:00:24]} 26... Rxf2 {[%clk 0:01:28.3]} 27. Rxf2 {[%clk 0:00:24.9]} 27...
g5 {[%clk 0:01:20.5]} 28. e3 {[%clk 0:00:20.5]} 28... Ng6 {[%clk 0:01:15.7]} 29.
Qd3 {[%clk 0:00:18]} 29... Nh4 {[%clk 0:01:14.6]} 30. Be4 {[%clk 0:00:13.9]}
30... Qc7 {[%clk 0:01:04.6]} 31. Bh7+ {[%clk 0:00:10.6]} 31... Kh8 {[%clk
0:01:04.1]} 32. Bg6 {[%clk 0:00:11.3]} 32... Rb8 {[%clk 0:01:01.2]} 33. Qe4
{[%clk 0:00:07.7]} 33... Qd7 {[%clk 0:00:55.6]} 34. Bf5 {[%clk 0:00:06.2]} 34...
Nxf5 {[%clk 0:00:52.1]} 35. gxf5 {[%clk 0:00:06]} 35... Re8 {[%clk 0:00:51.3]}
36. Qf3 {[%clk 0:00:05.8]} 36... Qe7 {[%clk 0:00:50.6]} 37. Rh2+ {[%clk
0:00:02.6]} 37... Kg8 {[%clk 0:00:50.3]} 38. Re2 {[%clk 0:00:02.7]} 38... Qf7
{[%clk 0:00:42.4]} 39. Kg2 {[%clk 0:00:02.6]} 39... Qxc4 {[%clk 0:00:42.1]} 40.
f6 {[%clk 0:00:03.3]} 40... Qe6 {[%clk 0:00:37.5]} 41. fxg7 {[%clk 0:00:02.3]}
41... Kxg7 {[%clk 0:00:38.4]} 42. Qg3 {[%clk 0:00:02.6]} 42... Qg6 {[%clk
0:00:28.5]} 43. e4 {[%clk 0:00:03]} 43... Rxe4 {[%clk 0:00:27.5]} 44. Rf2 {[%clk
0:00:03.4]} 44... Rxd4 {[%clk 0:00:23.5]} 45. Qc3 {[%clk 0:00:03.6]} 45... c5
{[%clk 0:00:21.5]} 46. Qb2 {[%clk 0:00:03.3]} 46... Qe4+ {[%clk 0:00:20.4]} 47.
Kg1 {[%clk 0:00:03.9]} 47... Kg6 {[%clk 0:00:20.7]} 48. Qb3 {[%clk 0:00:02]}
48... Qg4+ {[%clk 0:00:18.9]} 49. Rg2 {[%clk 0:00:02.3]} 49... Rd1+ {[%clk
0:00:18.9]} 50. Kf2 {[%clk 0:00:02.5]} 50... Qf4+ {[%clk 0:00:19.1]} 51. Ke2
{[%clk 0:00:02.5]} 51... Rd2+ {[%clk 0:00:17.8]} 52. Ke1 {[%clk 0:00:02.9]}
52... Rxg2 {[%clk 0:00:17.8]} 53. Qg8+ {[%clk 0:00:02.8]} 53... Kh5 {[%clk
0:00:17.1]} 0-1